bitfinex-derivatives/quotes_BTCF0:USTF0_20251111
["timestamp","ask_amount","ask_price","bid_price","bid_amount"]
[1762854044150,0.46703303,105470.0,105460.0,0.33922267]
[1762854044347,0.46703303,105470.0,105460.0,0.43922267]
[1762854044847,0.59896044,105470.0,105460.0,0.43822267]
[1762854045444,0.46703303,105470.0,105460.0,0.43822267]
[1762854045746,0.46703303,105470.0,105460.0,0.43722267]
[1762854045948,0.46703303,105470.0,105460.0,0.15722267]
[1762854046147,0.46703303,105470.0,105460.0,0.26722267]
[1762854046947,0.46703303,105470.0,105460.0,0.15722267]
[1762854047150,0.59896044,105470.0,105460.0,0.11357267]
[1762854047844,0.59896044,105470.0,105460.0,0.1]
[1762854049141,0.0948377,105460.0,105450.0,0.01298245]
[1762854049345,0.93108314,105460.0,105450.0,0.01298245]
[1762854050353,0.93208314,105460.0,105450.0,0.01298245]
[1762854050554,0.93208314,105460.0,105450.0,0.00014245]
[1762854050744,0.0948467,105450.0,105440.0,0.01284]
[1762854050944,0.56897214,105450.0,105440.0,0.01284]
[1762854051254,0.56897214,105450.0,105440.0,0.03445]
[1762854051455,0.0948556,105440.0,105430.0,0.05567]
[1762854051654,0.92110104,105440.0,105430.0,0.05640267]
[1762854051955,2.00917363,105440.0,105430.0,0.44640267]
[1762854053048,2.00917363,105440.0,105430.0,0.44740267]
[1762854054259,2.00917363,105440.0,105430.0,0.44840267]
[1762854056552,2.00917363,105440.0,105430.0,0.15840267]
[1762854056753,2.14110104,105440.0,105430.0,0.31840267]
[1762854057159,2.14110104,105440.0,105430.0,0.48840267]
[1762854057354,2.00917363,105440.0,105430.0,0.48840267]
[1762854059259,2.00917363,105440.0,105430.0,0.29840267]
[1762854059657,2.14110104,105440.0,105430.0,0.29840267]
[1762854060160,2.14110104,105440.0,105430.0,0.15840267]
[1762854060659,2.14110104,105440.0,105430.0,0.13645]
[1762854060859,2.14110104,105440.0,105430.0,0.15963267]
[1762854061747,2.14110104,105440.0,105430.0,0.11484]
[1762854061952,2.14110104,105440.0,105430.0,0.01484]
[1762854062762,2.14110104,105440.0,105430.0,0.002]
[1762854064057,0.0948646,105430.0,105420.0,0.00024942]
[1762854064255,0.0948646,105430.0,105410.0,0.01334]
[1762854064256,0.0948736,105420.0,105410.0,0.01334]
[1762854064450,0.0948826,105410.0,105400.0,0.05772]
[1762854064650,0.57900804,105410.0,105400.0,0.05772]
[1762854064855,1.79900804,105410.0,105400.0,0.01334]
[1762854065261,1.79910087,105410.0,105400.0,0.11334]
[1762854065459,1.79910087,105410.0,105400.0,0.1]
[1762854065655,1.79610087,105410.0,105400.0,0.1]
[1762854065852,0.0948916,105400.0,105390.0,0.15763245]
[1762854066060,0.93801704,105400.0,105390.0,0.05763245]
[1762854066260,0.80608963,105400.0,105390.0,0.03518245]
[1762854066452,0.93801704,105400.0,105390.0,0.01325245]
[1762854066654,0.93801704,105400.0,105390.0,1e-08]
[1762854068255,0.93901704,105400.0,105390.0,0.03504001]
[1762854068456,0.93901704,105400.0,105390.0,0.34749001]
[1762854068656,0.94001704,105400.0,105390.0,0.44749001]
[1762854068866,0.94001704,105400.0,105390.0,0.15749001]
[1762854069163,0.94001704,105400.0,105390.0,0.28749001]
[1762854069364,0.94001704,105400.0,105390.0,0.28822268]
[1762854069562,0.94001704,105400.0,105390.0,0.26822268]
[1762854071260,0.94001704,105400.0,105390.0,0.15822268]
[1762854071461,0.94001704,105400.0,105390.0,0.46822268]
[1762854071668,0.80808963,105400.0,105390.0,0.46822268]
[1762854071868,0.94001704,105400.0,105390.0,0.28822268]
[1762854072568,0.94001704,105400.0,105390.0,0.15822268]
[1762854075770,0.94001704,105400.0,105390.0,0.45822268]
[1762854076269,0.94001704,105400.0,105390.0,0.15822268]
[1762854076656,0.94001704,105400.0,105390.0,0.30822268]
[1762854077367,0.94001704,105400.0,105390.0,0.15822268]
[1762854078470,0.94001704,105400.0,105390.0,0.29822268]
[1762854079767,0.94001704,105400.0,105390.0,0.15822268]
[1762854080065,0.57801704,105400.0,105390.0,0.27822268]
[1762854080265,0.44608963,105400.0,105390.0,0.44822268]
[1762854080473,0.93985704,105400.0,105390.0,0.44822268]
[1762854081371,0.93985704,105400.0,105390.0,0.15822268]
[1762854081965,0.93985704,105400.0,105390.0,0.15749001]
[1762854082164,0.93985704,105400.0,105390.0,0.13504001]
[1762854082766,0.93985704,105400.0,105390.0,0.11311001]
[1762854082969,0.93985704,105400.0,105390.0,0.01311001]
[1762854083271,0.93985704,105400.0,105390.0,0.03529001]
[1762854084573,0.93985704,105400.0,105390.0,0.01311001]
[1762854084973,0.93985704,105400.0,105390.0,0.01185381]
[1762854085173,0.93985704,105400.0,105380.0,0.05783]
[1762854085174,0.0994607,105390.0,105380.0,0.05783]
[1762854085376,0.55358614,105390.0,105380.0,0.05783]
[1762854085972,0.0994697,105380.0,105370.0,0.05797245]
[1762854086178,0.00428,105350.0,105320.0,0.26475648]
[1762854086371,0.23336014,105330.0,105320.0,0.03562]
[1762854086570,0.0992438,105320.0,105310.0,0.01344]
[1762854086776,0.91740924,105320.0,105310.0,0.01344]
[1762854087168,0.55336924,105320.0,105310.0,0.05889267]
[1762854087372,0.91740924,105320.0,105310.0,0.15889267]
[1762854087569,0.55348412,105320.0,105310.0,0.15889267]
[1762854087764,0.91752412,105320.0,105310.0,0.15889267]
[1762854087970,0.91748412,105320.0,105310.0,0.28889267]
[1762854088171,0.55548412,105320.0,105310.0,0.28889267]
[1762854088370,0.92148412,105320.0,105310.0,0.15889267]
[1762854088575,0.91948412,105320.0,105310.0,0.15889267]
[1762854088777,0.92148412,105320.0,105310.0,0.15889267]
[1762854088969,0.91948412,105320.0,105310.0,0.15889267]
[1762854089165,0.92148412,105320.0,105310.0,0.15889267]
[1762854092571,1.05341153,105320.0,105310.0,0.1]
[1762854093884,0.0992528,105310.0,105300.0,0.05830245]
[1762854094179,0.58337824,105310.0,105300.0,0.05830245]
[1762854094974,0.58337824,105310.0,105300.0,0.11358245]
[1762854095173,0.58337824,105310.0,105300.0,0.10014245]
[1762854095371,0.0992708,105290.0,105280.0,0.05816]
[1762854095573,0.54339624,105290.0,105280.0,0.05889267]
[1762854095771,0.44840544,105290.0,105280.0,0.31889267]
[1762854096072,0.54339624,105290.0,105280.0,0.31889267]
[1762854096273,0.41146883,105290.0,105280.0,0.31889267]
[1762854096881,0.77126883,105290.0,105280.0,0.31889267]
[1762854097082,0.67627803,105290.0,105280.0,0.31889267]
[1762854097383,0.77554883,105290.0,105280.0,0.05889267]
[1762854097678,0.90847624,105290.0,105280.0,0.05889267]
[1762854097875,0.90847624,105290.0,105280.0,0.17889267]
[1762854098082,0.90847624,105290.0,105280.0,0.05889267]
[1762854099981,0.77654883,105290.0,105280.0,0.34889267]
[1762854100180,0.90847624,105290.0,105280.0,0.34889267]
[1762854100581,0.90847624,105290.0,105280.0,0.05889267]
[1762854101589,0.90831624,105290.0,105280.0,0.05889267]
[1762854102281,0.77638883,105290.0,105280.0,0.05889267]
[1762854102584,0.90831624,105290.0,105280.0,0.05889267]
[1762854103885,0.90831624,105290.0,105280.0,0.16889267]
[1762854104287,0.90831624,105290.0,105280.0,0.05889267]
[1762854105987,0.90831624,105290.0,105280.0,0.05816]
[1762854106194,0.0992798,105280.0,105270.0,0.05835782]
[1762854106486,0.6034962,105280.0,105270.0,0.05909049]
[1762854106987,0.47156879,105280.0,105270.0,0.18909049]
[1762854107290,0.47156879,105280.0,105270.0,0.19009049]
[1762854107786,0.47156879,105280.0,105270.0,0.37009049]
[1762854107979,0.21156879,105280.0,105270.0,0.37009049]
[1762854108175,0.21156879,105280.0,105270.0,0.37938788]
[1762854108483,0.10156879,105280.0,105270.0,0.37938788]
[1762854108686,0.47156879,105280.0,105270.0,0.06938788]
[1762854108991,0.47156879,105280.0,105270.0,0.17938788]
[1762854109291,0.47156879,105280.0,105270.0,0.06938788]
[1762854109888,0.47156879,105280.0,105270.0,0.34938788]
[1762854111178,0.06228899,105280.0,105270.0,0.44439678]
[1762854111382,0.83092879,105280.0,105270.0,0.44439678]
[1762854111581,0.77092879,105280.0,105270.0,0.44439678]
[1762854111887,0.46092879,105280.0,105270.0,0.44439678]
[1762854112282,0.00228899,105280.0,105270.0,0.44439678]
[1762854112588,9.096e-05,105280.0,105270.0,0.44439678]
[1762854113786,0.09509076,105280.0,105270.0,0.44439678]
[1762854115277,9.096e-05,105280.0,105270.0,0.44439678]
[1762854115489,0.09509076,105280.0,105270.0,0.44439678]
[1762854116089,0.09728879,105280.0,105270.0,0.44439678]
[1762854117891,0.06308377,105280.0,105270.0,0.44439678]
[1762854118791,0.21736377,105280.0,105270.0,0.34938788]
[1762854118992,0.06747182,105280.0,105270.0,0.34938788]
[1762854119395,0.06319182,105280.0,105270.0,0.44439678]
[1762854119996,0.00230608,105280.0,105270.0,0.52922697]
[1762854120296,0.0949937,105290.0,105280.0,0.1501998]
[1762854120599,0.09513145,105300.0,105290.0,0.1501908]
[1762854120893,0.09513145,105300.0,105290.0,0.45092347]
[1762854120894,0.33732948,105300.0,105290.0,0.45092347]
[1762854121091,0.34180948,105300.0,105290.0,0.45092347]
[1762854121292,0.34180948,105300.0,105290.0,0.35593267]
[1762854121790,0.34180948,105300.0,105290.0,0.34593267]
[1762854121995,0.34380948,105300.0,105290.0,0.34593267]
[1762854122303,0.34480948,105300.0,105290.0,0.34593267]
[1762854123199,0.34480948,105300.0,105290.0,0.44092347]
[1762854123795,0.00534048,105300.0,105290.0,0.44092347]
[1762854123998,0.10032228,105300.0,105290.0,0.44092347]
[1762854124501,0.06078041,105310.0,105300.0,0.1501818]
[1762854124698,0.47126223,105320.0,105310.0,0.0552]
[1762854124892,0.09716223,105320.0,105310.0,0.47090547]
[1762854125090,0.09716183,105320.0,105310.0,0.37593267]
[1762854125291,0.10255183,105320.0,105310.0,0.37593267]
[1762854125592,0.09716183,105320.0,105310.0,0.47090547]
[1762854125795,0.00219803,105320.0,105310.0,0.47090547]
[1762854126094,0.07450756,105330.0,105320.0,0.1501638]
[1762854126300,0.13450756,105330.0,105320.0,0.48236183]
[1762854126502,0.09450756,105330.0,105320.0,0.48236183]
[1762854127297,0.09550756,105330.0,105320.0,0.48236183]
[1762854128093,0.021,105330.0,105320.0,0.48236183]
[1762854128391,0.0959548,105330.0,105320.0,0.48236183]
[1762854128588,0.001,105330.0,105320.0,0.48236183]
[1762854129802,0.3667347,105330.0,105320.0,0.05739803]
[1762854130104,0.92424485,105330.0,105320.0,0.00219803]
[1762854130505,0.89004706,105330.0,105320.0,0.00219803]
[1762854131604,0.89004706,105330.0,105320.0,0.01506803]
[1762854132308,0.89004706,105330.0,105320.0,0.03619803]
[1762854132697,0.89004706,105330.0,105320.0,0.01506803]
[1762854133204,0.1057438,105320.0,105310.0,0.01287]
[1762854133404,0.61993395,105320.0,105310.0,0.00219803]
[1762854133707,0.1057528,105310.0,105300.0,0.05534245]
[1762854133906,0.61994295,105310.0,105300.0,0.05754048]
[1762854134507,0.98326295,105310.0,105300.0,0.05754048]
[1762854135194,0.98326295,105310.0,105300.0,0.05954048]
[1762854135397,0.98326295,105310.0,105300.0,0.00434048]
[1762854135797,0.98326295,105310.0,105300.0,0.00534048]
[1762854136093,0.98326295,105310.0,105300.0,0.00314245]
[1762854136496,0.94905675,105310.0,105300.0,0.00314245]
[1762854137803,0.0994708,105290.0,105280.0,0.034]
[1762854138010,1.00714095,105290.0,105280.0,0.03619803]
[1762854138407,1.00714095,105290.0,105280.0,0.18739803]
[1762854138702,1.00714095,105290.0,105280.0,0.05739803]
[1762854139501,1.00814095,105290.0,105280.0,0.05739803]
[1762854139803,0.71896,105290.0,105280.0,0.42239783]
[1762854140008,0.8139508,105290.0,105280.0,0.32739803]
[1762854140606,0.8158708,105290.0,105280.0,0.32739803]
[1762854141809,0.8158708,105290.0,105280.0,0.05739803]
[1762854142108,1.01006095,105290.0,105280.0,0.05739803]
[1762854142502,1.01006095,105290.0,105280.0,0.17739803]
[1762854142805,1.01006095,105290.0,105280.0,0.15619803]
[1762854143011,1.01006095,105290.0,105270.0,0.0662327]
[1762854143012,0.0994798,105280.0,105270.0,0.0662327]
[1762854143213,0.65366995,105280.0,105270.0,0.06843073]
[1762854144306,0.65466995,105280.0,105270.0,0.04572073]
[1762854144810,0.65466995,105280.0,105270.0,0.06843073]
[1762854145909,0.65466995,105280.0,105270.0,0.15326092]
[1762854146112,0.65466995,105280.0,105270.0,0.06843073]
[1762854146320,0.65466995,105280.0,105270.0,0.19843073]
[1762854146519,0.65466995,105280.0,105270.0,0.35843073]
[1762854146815,0.65466995,105280.0,105270.0,0.06843073]
[1762854147117,0.65466995,105280.0,105270.0,0.01174073]
[1762854148605,0.65466995,105280.0,105270.0,0.0095427]
[1762854148908,0.0994979,105260.0,105250.0,0.26032721]
[1762854149124,1.00680805,105260.0,105250.0,0.46732472]
[1762854149310,1.00680805,105260.0,105250.0,0.0685177]
[1762854149707,0.35008517,105260.0,105250.0,0.5035446]
[1762854149908,0.00014245,105270.0,105260.0,0.1523279]
[1762854150216,0.00014245,105270.0,105260.0,0.51935612]
[1762854151115,0.00019878,105270.0,105260.0,0.51935612]
[1762854151618,0.00019878,105270.0,105260.0,0.52035612]
[1762854152215,0.44744768,105270.0,105260.0,0.52035612]
[1762854152411,0.09968768,105270.0,105260.0,0.52035612]
[1762854153012,0.46968768,105270.0,105260.0,0.42533822]
[1762854153524,0.33968768,105270.0,105260.0,0.52035612]
[1762854153716,0.33968768,105270.0,105260.0,0.42533822]
[1762854153916,0.33968768,105270.0,105260.0,0.52035612]
[1762854154721,0.33968768,105270.0,105260.0,0.42533822]
[1762854154917,0.25968768,105270.0,105260.0,0.52035612]
[1762854155422,0.39968768,105270.0,105260.0,0.52035612]
[1762854156121,0.59387783,105270.0,105260.0,0.42533822]
[1762854156316,0.95699783,105270.0,105260.0,0.03779803]
[1762854156916,0.95699783,105270.0,105260.0,0.06050803]
[1762854157524,0.95699783,105270.0,105260.0,0.01568803]
[1762854157818,0.95799783,105270.0,105260.0,0.01568803]
[1762854158623,0.95899783,105270.0,105260.0,0.01568803]
[1762854159130,0.95799783,105270.0,105260.0,0.05950803]
[1762854159325,0.95999783,105270.0,105260.0,0.05950803]
[1762854159928,0.95999783,105270.0,105260.0,0.17950803]
[1762854160323,0.95999783,105270.0,105260.0,0.05950803]
[1762854160834,0.0994978,105260.0,105250.0,0.06631967]
[1762854161127,0.35448,105260.0,105250.0,0.38888803]
[1762854161322,0.4494978,105260.0,105250.0,0.38888803]
[1762854161722,0.64368795,105260.0,105250.0,0.05888803]
[1762854162218,0.64368795,105260.0,105250.0,0.01506803]
[1762854162413,0.0995068,105250.0,105240.0,0.14223515]
[1762854162618,1.00693695,105250.0,105240.0,0.32960299]
[1762854163730,1.00693695,105250.0,105240.0,0.07001893]
[1762854164733,1.00693695,105250.0,105220.0,0.06690186]
[1762854164734,0.00448,105230.0,105220.0,0.06690186]
[1762854165024,0.00448,105230.0,105220.0,0.06909989]
[1762854165025,1.01698008,105230.0,105220.0,0.06909989]
[1762854165823,1.01698008,105230.0,105220.0,0.07209989]
[1762854166016,0.36453633,105230.0,105220.0,0.07409989]
[1762854166225,0.00229633,105230.0,105220.0,0.45916259]
[1762854166723,0.09959003,105230.0,105220.0,0.45916259]
[1762854166923,0.0995518,105210.0,105200.0,0.05731]
[1762854167124,0.97822195,105210.0,105200.0,0.05950803]
[1762854168123,0.97822195,105210.0,105200.0,0.06350803]
[1762854168527,0.97822195,105210.0,105200.0,0.05731]
[1762854168827,0.0995608,105200.0,105190.0,0.0346]
[1762854169027,0.53227565,105200.0,105190.0,0.05950803]
[1762854169325,8.411e-05,105200.0,105190.0,0.41459783]
[1762854169727,0.22779565,105200.0,105190.0,0.23885185]
[1762854169921,0.52227565,105200.0,105190.0,0.06885185]
[1762854170222,0.56227565,105200.0,105190.0,0.06885185]
[1762854170622,0.23227565,105200.0,105190.0,0.06885185]
[1762854170822,0.35227565,105200.0,105190.0,0.06885185]
[1762854171419,0.35227565,105200.0,105190.0,0.16394165]
[1762854171624,0.25271485,105200.0,105190.0,0.47394165]
[1762854171827,0.12008411,105200.0,105190.0,0.47394165]
[1762854172020,8.411e-05,105200.0,105190.0,0.47394165]
[1762854175030,0.09516491,105200.0,105190.0,0.47394165]
[1762854175530,8.411e-05,105200.0,105190.0,0.47394165]
[1762854175918,0.50177319,105220.0,105210.0,0.1540218]
[1762854176124,0.41969085,105220.0,105210.0,0.17114803]
[1762854176318,0.41521085,105220.0,105210.0,0.06114803]
[1762854176526,0.41521085,105220.0,105210.0,0.28621983]
[1762854176731,0.41521085,105220.0,105210.0,0.06114803]
[1762854177036,0.41949371,105220.0,105210.0,0.06114803]
[1762854177242,0.42173371,105220.0,105210.0,0.06114803]
[1762854177737,0.55436445,105220.0,105210.0,0.06114803]
[1762854177927,0.55636445,105220.0,105210.0,0.06114803]
[1762854178732,0.92084445,105220.0,105210.0,0.06114803]
[1762854179837,0.82577605,105220.0,105210.0,0.15621983]
[1762854180036,0.92083875,105220.0,105210.0,0.40621983]
[1762854180222,0.92083875,105220.0,105210.0,0.15621983]
[1762854180426,0.55411875,105220.0,105210.0,0.15621983]
[1762854180927,0.32418531,105220.0,105210.0,0.45621983]
[1762854181132,0.41924801,105220.0,105210.0,0.28621983]
[1762854181337,0.41924801,105220.0,105210.0,0.41621983]
[1762854181523,0.45681605,105220.0,105210.0,0.41621983]
[1762854181726,0.55187875,105220.0,105210.0,0.41621983]
[1762854181932,0.55635875,105220.0,105210.0,0.06114803]
[1762854183737,0.55635875,105220.0,105210.0,0.15621983]
[1762854184036,0.55635875,105220.0,105210.0,0.06114803]
[1762854184833,0.55635875,105220.0,105210.0,0.03809803]
[1762854185939,0.55635875,105220.0,105210.0,0.06055803]
[1762854186836,0.55635875,105220.0,105210.0,0.01585803]
[1762854187232,0.55635875,105220.0,105210.0,0.03803803]
[1762854188237,0.55635875,105220.0,105210.0,0.06049803]
[1762854188442,0.55635875,105220.0,105210.0,0.03803803]
[1762854190628,0.0995608,105200.0,105190.0,0.06747382]
[1762854190838,0.65615154,105200.0,105190.0,0.16476165]
[1762854191041,0.95615154,105200.0,105190.0,0.21305423]
[1762854191438,0.95615154,105200.0,105190.0,0.30814403]
[1762854191638,0.00224,105200.0,105190.0,0.60814403]
[1762854191836,0.34224,105200.0,105190.0,0.60814403]
[1762854192036,0.34448,105200.0,105190.0,0.60814403]
[1762854192238,0.4395608,105200.0,105190.0,0.06967185]
[1762854192439,0.57219154,105200.0,105190.0,0.06032803]
[1762854193930,0.70482228,105200.0,105190.0,0.00219803]
[1762854194131,0.0995698,105190.0,105180.0,0.01349]
[1762854194338,0.96624054,105190.0,105180.0,0.01568803]
[1762854194842,0.96624054,105190.0,105180.0,0.03786803]
[1762854195033,0.96624054,105190.0,105180.0,0.06032803]
[1762854195432,2.1862834,105190.0,105180.0,0.01568803]
[1762854196043,2.1862834,105190.0,105180.0,0.01668803]
[1762854196232,2.1862834,105190.0,105180.0,0.06132803]
[1762854196546,2.1862834,105190.0,105180.0,0.06232803]
[1762854197547,2.1863634,105190.0,105180.0,0.06232803]
[1762854197941,0.37228286,105190.0,105180.0,0.41742693]
[1762854198251,0.46737266,105190.0,105180.0,0.41742693]
[1762854198437,0.37228286,105190.0,105180.0,0.41742693]
[1762854198940,0.37452286,105190.0,105180.0,0.41742693]
[1762854199148,0.46961266,105190.0,105180.0,0.41742693]
[1762854199838,0.37452286,105190.0,105180.0,0.41742693]
[1762854200343,0.37228286,105190.0,105180.0,0.41742693]
[1762854200548,0.37004286,105190.0,105180.0,0.56022097]
[1762854201444,0.14004286,105190.0,105180.0,0.64505116]
[1762854204853,0.24612242,105190.0,105180.0,0.75113072]
[1762854206653,0.24612242,105190.0,105180.0,0.64505116]
[1762854206852,0.24612242,105190.0,105180.0,0.75113072]
[1762854208748,4.286e-05,105190.0,105180.0,0.75113072]
[1762854208954,0.10622201,105200.0,105190.0,0.1547599]
[1762854209147,0.41622201,105200.0,105190.0,0.9159235]
[1762854209348,0.41622201,105200.0,105190.0,1.02200306]
[1762854209554,0.41622201,105200.0,105190.0,0.9159235]
[1762854210254,0.41846201,105200.0,105190.0,0.9159235]
[1762854210455,0.00014245,105200.0,105190.0,1.16528883]
[1762854210657,0.00014245,105200.0,105190.0,1.08004326]
[1762854210857,0.00014245,105200.0,105190.0,1.19885028]
[1762854211757,0.20578281,105200.0,105190.0,1.19885028]
[1762854212058,0.11070201,105200.0,105190.0,1.09277072]
[1762854212547,0.11070201,105200.0,105190.0,1.19885028]
[1762854212851,0.10846201,105200.0,105190.0,1.19885028]
[1762854213456,0.11070201,105200.0,105190.0,1.09277072]
[1762854213655,0.00014245,105200.0,105190.0,1.09277072]
[1762854213954,0.10622201,105200.0,105190.0,1.19885028]
[1762854215554,0.10846201,105200.0,105190.0,1.19885028]
[1762854215750,0.11070201,105200.0,105190.0,1.19885028]
[1762854216150,0.20578281,105200.0,105190.0,1.19885028]
[1762854217858,0.47578281,105200.0,105190.0,1.19885028]
[1762854218248,0.20578281,105200.0,105190.0,1.19885028]
[1762854218648,0.10622201,105200.0,105190.0,1.08004326]
[1762854219954,0.10846201,105200.0,105190.0,1.08004326]
[1762854220151,0.20354281,105200.0,105190.0,1.08004326]
[1762854220651,0.20354281,105200.0,105190.0,1.19885028]
[1762854221861,0.20578281,105200.0,105190.0,1.19885028]
[1762854223465,0.52578281,105200.0,105190.0,1.19885028]
[1762854223670,0.20578281,105200.0,105190.0,1.19885028]
[1762854223861,0.53578281,105200.0,105190.0,1.19885028]
[1762854224256,0.57578281,105200.0,105190.0,1.19885028]
[1762854224458,0.20578281,105200.0,105190.0,1.19885028]
[1762854224664,0.56578281,105200.0,105190.0,1.19885028]
[1762854225370,0.48578281,105200.0,105190.0,1.19885028]
[1762854226056,0.20578281,105200.0,105190.0,1.19885028]
[1762854226261,0.52578281,105200.0,105190.0,1.19885028]
[1762854226460,0.50578281,105200.0,105190.0,1.19885028]
[1762854226662,0.50578281,105200.0,105190.0,1.09277072]
[1762854226867,0.54578281,105200.0,105190.0,0.90885028]
[1762854227264,0.54578281,105200.0,105190.0,1.17885028]
[1762854228670,0.20578281,105200.0,105190.0,1.17885028]
[1762854228869,0.41970325,105200.0,105190.0,1.07277072]
[1762854229069,0.09970325,105200.0,105190.0,1.07277072]
[1762854229270,0.38970325,105200.0,105190.0,1.07277072]
[1762854229667,0.00014245,105200.0,105190.0,1.07277072]
[1762854230065,0.09746325,105200.0,105190.0,1.07277072]
[1762854231274,0.43746325,105200.0,105190.0,1.07277072]
[1762854231470,0.09746325,105200.0,105190.0,1.07277072]
[1762854232872,0.00238245,105200.0,105190.0,1.07277072]
[1762854233379,0.00014245,105200.0,105190.0,1.07277072]
[1762854233672,0.41970325,105200.0,105190.0,0.70905072]
[1762854233875,0.52576486,105200.0,105190.0,0.8331699]
[1762854234073,0.52576486,105200.0,105190.0,1.1131699]
[1762854235472,0.52576486,105200.0,105190.0,1.23279208]
[1762854236167,0.12522325,105200.0,105190.0,0.97585369]
[1762854236371,0.12522325,105200.0,105190.0,0.80592739]
[1762854236773,0.12522325,105200.0,105190.0,0.68630521]
[1762854237576,0.46522325,105200.0,105190.0,0.68630521]
[1762854237776,0.43522325,105200.0,105190.0,0.5802436]
[1762854237980,0.43970325,105200.0,105190.0,0.9430836]
[1762854238168,0.54576486,105200.0,105190.0,1.028555]
[1762854238476,0.54576486,105200.0,105190.0,0.5679138]
[1762854238668,0.54576486,105200.0,105190.0,0.8030036]
[1762854238871,0.54576486,105200.0,105190.0,0.92262578]
[1762854239066,0.54576486,105200.0,105190.0,1.09262578]
[1762854239271,0.54576486,105200.0,105190.0,0.9730036]
[1762854240169,0.54576486,105200.0,105190.0,1.05269458]
[1762854241575,0.54576486,105200.0,105190.0,0.79760478]
[1762854241765,0.54576486,105200.0,105190.0,0.52993458]
[1762854242878,0.54576486,105200.0,105190.0,0.70993458]
[1762854243277,0.34462245,105200.0,105190.0,0.70993458]
[1762854243576,0.43970325,105200.0,105190.0,0.70993458]
[1762854245567,0.43522325,105200.0,105190.0,0.70993458]
[1762854245772,0.43970325,105200.0,105190.0,0.70993458]
[1762854246379,0.54576486,105200.0,105190.0,0.34484478]
[1762854246688,0.54576486,105200.0,105190.0,0.32484478]
[1762854247876,0.54576486,105200.0,105190.0,0.18155901]
[1762854249875,0.90828486,105200.0,105190.0,0.06186803]
[1762854250181,0.90828486,105200.0,105190.0,0.08768041]
[1762854250482,0.90828486,105200.0,105190.0,0.02410803]
[1762854252178,2.12828486,105200.0,105190.0,0.02410803]
[1762854254280,2.12828486,105200.0,105190.0,0.10739238]
[1762854254880,2.12828486,105200.0,105190.0,0.10959041]
[1762854255286,2.12828486,105200.0,105190.0,0.04678803]
[1762854255475,2.12828486,105200.0,105190.0,0.05994803]
[1762854255875,0.90828486,105200.0,105190.0,0.14543041]
[1762854257772,0.43970325,105200.0,105190.0,0.26543041]
[1762854257978,0.90812486,105200.0,105190.0,0.05994803]
[1762854258178,0.90812486,105200.0,105190.0,0.42503783]
[1762854260578,0.54576486,105200.0,105190.0,0.42503783]
[1762854260784,0.54576486,105200.0,105190.0,0.32994803]
[1762854261286,0.54352486,105200.0,105190.0,0.42503783]
[1762854261484,0.43746325,105200.0,105190.0,0.42503783]
[1762854261785,0.54576486,105200.0,105190.0,0.42503783]
[1762854261982,0.54576486,105200.0,105190.0,0.44963901]
[1762854263088,0.54576486,105200.0,105190.0,0.46963901]
[1762854263387,0.54576486,105200.0,105190.0,0.56472881]
[1762854263781,0.54576486,105200.0,105190.0,0.46963901]
[1762854264486,0.54576486,105200.0,105190.0,0.17963901]
[1762854265193,0.54576486,105200.0,105190.0,0.29963901]
[1762854265491,0.54576486,105200.0,105190.0,0.17963901]
[1762854266788,0.54576486,105200.0,105190.0,0.30963901]
[1762854267484,0.54576486,105200.0,105190.0,0.17963901]
[1762854268288,0.54576486,105200.0,105190.0,0.26504896]
[1762854268489,0.54576486,105200.0,105190.0,0.26506722]
[1762854268796,0.54576486,105200.0,105190.0,0.14537624]
[1762854270292,0.54576486,105200.0,105190.0,0.08762624]
[1762854270789,0.54576486,105200.0,105190.0,0.10991624]
[1762854271094,0.54576486,105200.0,105190.0,0.08762624]
[1762854271298,0.0995698,105190.0,105180.0,0.22740919]
[1762854271489,0.90779141,105190.0,105180.0,0.14465624]
[1762854272395,0.90779141,105190.0,105180.0,0.14565624]
[1762854272590,0.90779141,105190.0,105180.0,0.14665624]
[1762854276193,0.90779141,105190.0,105180.0,0.08742821]
[1762854276385,1.01385302,105190.0,105180.0,0.08742821]
[1762854276590,0.0995789,105180.0,105170.0,0.13102634]
[1762854276791,0.53564051,105180.0,105170.0,0.15431437]
[1762854278000,0.64170212,105180.0,105170.0,0.15431437]
[1762854278200,0.64170212,105180.0,105170.0,0.13622437]
[1762854278400,0.64170212,105180.0,105170.0,0.15731437]
[1762854279090,0.64170212,105180.0,105170.0,0.10021437]
[1762854279288,0.64170212,105180.0,105170.0,0.14359437]
[1762854279900,0.099597,105160.0,105150.0,0.05703]
[1762854280100,0.88769861,105160.0,105150.0,0.05922803]
[1762854280296,0.88769861,105160.0,105150.0,0.06862703]
[1762854280993,0.88780539,105160.0,105150.0,0.06862703]
[1762854281189,0.88780539,105160.0,105150.0,0.07162703]
[1762854281394,0.88780539,105160.0,105150.0,0.07362703]
[1762854283202,0.993867,105160.0,105150.0,0.014399]
[1762854284496,0.993867,105160.0,105150.0,0.009399]
[1762854284698,0.0996151,105140.0,105130.0,0.05703]
[1762854284897,0.92795671,105140.0,105130.0,0.05922803]
[1762854285901,0.92795671,105140.0,105130.0,0.06222803]
[1762854286212,0.92795671,105140.0,105130.0,0.07363069]
[1762854286401,0.92795671,105140.0,105130.0,0.07143266]
[1762854286909,2.14795671,105140.0,105130.0,0.07143266]
[1762854287603,2.14795671,105140.0,105130.0,0.06963069]
[1762854287802,2.14795671,105140.0,105130.0,0.49477479]
[1762854288108,2.05286161,105140.0,105130.0,0.49477479]
[1762854288304,1.58448,105140.0,105130.0,0.49477479]
[1762854288495,0.47054161,105140.0,105130.0,0.49477479]
[1762854288702,0.83278161,105140.0,105130.0,0.49477479]
[1762854290207,0.92791671,105140.0,105130.0,0.49477479]
[1762854290608,0.0996332,105120.0,105090.0,0.01294]
[1762854290806,0.11054161,105100.0,105090.0,0.05877803]
[1762854291015,0.00448,105100.0,105090.0,0.36104463]
[1762854291201,0.3,105100.0,105090.0,0.46731443]
[1762854291395,0.1107498,105110.0,105100.0,0.05658]
[1762854291606,0.09978095,105120.0,105110.0,0.05658]
[1762854291810,0.18238245,105120.0,105110.0,0.31877803]
[1762854292106,0.27760999,105120.0,105110.0,0.31877803]
[1762854292514,0.38611979,105120.0,105110.0,0.05877803]
[1762854293104,0.38711979,105120.0,105110.0,0.05877803]
[1762854293906,0.49438959,105120.0,105110.0,0.05877803]
[1762854294113,0.49638959,105120.0,105110.0,0.05877803]
[1762854294307,0.85882959,105120.0,105110.0,0.03765803]
[1762854294514,0.0996422,105110.0,105100.0,0.06597781]
[1762854294712,0.56811003,105110.0,105100.0,0.06671048]
[1762854295010,0.56811003,105110.0,105100.0,0.03619267]
[1762854295011,0.67437983,105110.0,105100.0,0.03619267]
[1762854295211,0.56811003,105110.0,105100.0,0.03619267]
[1762854295520,0.46184023,105110.0,105100.0,0.05731267]
[1762854295907,0.56811003,105110.0,105100.0,0.05731267]
[1762854296309,0.67537983,105110.0,105100.0,0.05731267]
[1762854296514,0.56911003,105110.0,105100.0,0.05731267]
[1762854296720,0.57011003,105110.0,105100.0,0.05731267]
[1762854297107,0.56911003,105110.0,105100.0,0.05731267]